Cogmind - Beta 16 @@@ ROGUE MODE // 2025.10.29 @ 22:19:21 Player: shapeshifter Result: Destroyed by G-47 Trooper with Particle Gun Performance ------------- Evolutions (0) 0 Regions Visited (2) 400 Robots Destroyed (18) 90 Value Destroyed (317) 317 Prototype IDs (0) 0 Alien Tech Used (0) 0 Bonus (15) 15 TOTAL SCORE: 822 Bonus ------- Follower Combat Kills 49 Friendly Fire -34 Cogmind --------- Core Integrity 0/250 Matter 292/300 Energy 100/100 System Corruption 0% Temperature Cool (9) Movement Core (400) Ox7 Location -10/Mines Parts ------- > --- POWER (1) -------- (None) > --- PROPULSION (2) --- (None) > --- UTILITY (2) ------ Large Storage Unit Core Shielding > --- WEAPON (2) ------- Mace > --- INVENTORY (15) --- Improved Heat Sink Huge Storage Unit Improved Terrain Scanner Core Shielding Trap Extractor (0/4) Trap Extractor (0/4) Trap Extractor (0/4) Trap Extractor (0/4) Particle Gun Particle Gun Particle Gun Particle Gun Rocket Launcher Mining Laser Peak State ------------ > --- POWER ------------ Ion Engine > --- PROPULSION ------- Light Treads Compact Wheel > --- UTILITY ---------- Large Storage Unit Seismic Detector > --- WEAPON ----------- Light Assault Rifle Light Assault Rifle > --- INVENTORY -------- Compact Wheel Improved Terrain Scanner Core Shielding Core Shielding Core Shielding Trap Extractor Trap Extractor Trap Extractor Trap Extractor Particle Gun Particle Gun Particle Gun Particle Gun Mace [Rating: 9] Favorites ----------- Power Ion Engine Engine Ion Engine Propulsion Light Treads Treads Light Treads Wheel Compact Wheel Utility Large Storage Unit Device Seismic Detector Storage Large Storage Unit Protection Core Shielding Weapon Light Assault Rifle Ballistic Gun Light Assault Rifle Impact Weapon Mace Build | -11 -10 -10 ------- Run | Yrd Mat Min Slots Evolved . | . . . Power . | . . . Propulsion . | . . . Utility . | . . . Weapon . | . . . Parts Attached 17 | 7 6 4 Power 2 | 1 1 . Engine 2 | 1 1 . Core . | . . . Reactor . | . . . Propulsion 4 | 2 2 . Treads 2 | 2 . . Leg . | . . . Wheel 2 | . 2 . Hover . | . . . Flight . | . . . Utility 4 | 2 1 1 Device 1 | 1 . . Storage 2 | 1 1 . Processor . | . . . Hackware . | . . . Protection 1 | . . 1 Artifact . | . . . Weapon 7 | 2 2 3 Energy Gun . | . . . Energy Cannon . | . . . Ballistic Gun 6 | 2 2 2 Ballistic Cannon . | . . . Launcher . | . . . Special Weapon . | . . . Impact Weapon 1 | . . 1 Slashing Weapon . | . . . Piercing Weapon . | . . . Special Melee Weapon . | . . . Unidentified Prototypes . | . . . Parts Lost 9 | . 3 6 Power 2 | . 1 1 Propulsion 4 | . 1 3 Utility . | . . . Weapon 3 | . 1 2 Highest Loss Streak 4 | . 1 4 To Critical Strikes . | . . . Average Backups 10 | 4 8 14 Power . | . . . Propulsion 1 | 1 1 . Utility 4 | . 3 7 Weapon 4 | 1 2 6 Tool/Special . | . . . Unused Backups 16 | . 1 15 Power . | . . . Propulsion . | . . . Utility 9 | . . 9 Weapon 7 | . 1 6 Tool/Special . | . . . Average Slot Usage (%) 90 | . 95 86 Engine 7 | . 12 3 Treads 13 | . 22 5 Wheel 12 | . 3 20 Device 10 | . 14 7 Storage 14 | . 14 14 Protection 3 | . . 6 Ballistic Gun 27 | . 28 27 Peak Build Rating 9 | 7 9 9 Average Rating 7 | 5 7 8 On Entrance 5 | . 7 9 Avg Prop Armor Cover (%) 17 | . . 17 Naked Turns . | . . . Heaviest Build 29 | 14 29 28 Greatest Support 40 | 40 40 32 Greatest Overweight (x) 1 | . 1 1 Average Overweight (x) . | . . . Largest Inventory Capacity 15 | 8 15 15 Average Capacity 13 | 7 14 15 Most Carried 15 | 6 15 15 Average Carried 10 | 4 8 14 Final Capacity 15 | 8 15 15 Final Carried 14 | 5 14 14 Class Distribution -------------------- 100% | Mutant Dominant Class ---------------- Mutant | -10/Materials Mutant | -10/Mines Resources | -11 -10 -10 ----------- Run | Yrd Mat Min Matter Collected 562 | 250 191 121 Remotely . | . . . Salvage Created 448 | 72 234 142 Parts 36 | 10 11 15 Haulers Intercepted . | . . . Recyclers Shooed . | . . . Parts Field Recycled . | . . . Retrieved Matter . | . . . Parts Self-Destructed . | . . . Prevented . | . . . Parts Restored . | . . . Kills | -11 -10 -10 ------- Run | Yrd Mat Min Combat Hostiles Destroyed 15 | . 7 8 Guns 15 | . 7 8 Classes Destroyed 3 | 1 2 . Tunneler 3 | 3 . . Swarmer 10 | . 3 7 Grunt 5 | . 4 1 Best Kill Streak 3 | 1 3 3 Combat Bots Only 3 | . 3 3 Max Kills in Single Turn 1 | 1 1 1 Gunslinging . | . . . Exploded . | . . . Melee . | . . . Uniques/NPCs Destroyed . | . . . Combat | -11 -10 -10 -------- Run | Yrd Mat Min Hostile Shots Fired 139 | . 57 82 Missed 33 | . 15 18 Hits 106 | . 42 64 Projectile 106 | . 42 64 Critical Strikes 3 | . 2 1 Damage Taken 1275 | . 618 657 Core 257 | . 70 187 Absorbed by Shields . | . . . Redirected to Shielding 33 | . . 33 Core Remaining (%) 100 | 100 . . Volleys Fired 86 | 9 46 31 Largest 2 | 2 2 2 Hottest 40 | 40 40 40 Shots Fired 167 | 18 90 59 Gun 167 | 18 90 59 Cannon . | . . . Launcher . | . . . Special . | . . . Kinetic 167 | 18 90 59 Thermal . | . . . Explosive . | . . . Electromagnetic . | . . . Robot Hit Streak 8 | 7 8 6 Robot Miss Streak 8 | 2 3 8 Penetration Max . | . . . Secondary Targets 2 | . . 2 Max Gunslinging Chain 1 | . . 1 Shots Hit Robots 100 | 12 57 31 Core Hits 39 | 4 18 17 Critical Kills . | . . . Critical Parts Destroyed 1 | . . 1 Critical Strikes 1 | . . 1 Smash 1 | . . 1 Melee Attacks 3 | . . 3 Impact 3 | . . 3 Slashing . | . . . Piercing . | . . . Sneak Attacks . | . . . Combat Hostiles . | . . . Follow-up Attacks . | . . . Damage Inflicted 978 | 123 530 325 Guns 925 | 123 530 272 Cannons . | . . . Explosions . | . . . Melee 53 | . . 53 Ramming . | . . . Kinetic 925 | 123 530 272 Thermal . | . . . Explosive . | . . . Electromagnetic . | . . . Impact 53 | . . 53 Slashing . | . . . Piercing . | . . . Highest Corruption . | . . . Average Corruption . | . . . Corruption Purged . | . . . Corruption Blocked . | . . . Overload Shots . | . . . Overflow Damage 26 | . . 26 Projectiles . | . . . Explosions . | . . . Melee 26 | . . 26 Knockbacks . | . . . Impact . | . . . Kinetic . | . . . Secondary . | . . . Self-Inflicted Damage . | . . . Shots . | . . . Rammed . | . . . Targets Rammed . | . . . Kicked . | . . . Crushed . | . . . Highest Temperature 22 | . 22 22 Average Temperature 7 | . 8 6 Received Heat Transfer 525 | . 291 234 Siege Activations . | . . . Martial Activations . | . . . Shielding Activations . | . . . Robots Disrupted . | . . . Combat Hostiles . | . . . Robots Corrupted . | . . . Combat Hostiles . | . . . Parts Fried . | . . . Impact Corruptions 1 | . . 1 Robots Melted . | . . . Combat Hostiles . | . . . Parts Melted . | . . . Heat Transferred . | . . . Parts Sabotaged . | . . . Parts Stolen . | . . . Parts Stripped . | . . . Power Chain Reactions . | . . . Alert | -11 -10 -10 ------- Run | Yrd Mat Min Maximum Alert Level . | . . . Low Security (%) 100 | 100 100 100 Level 1 . | . . . Level 2 . | . . . Level 3 . | . . . Level 4 . | . . . Level 5 . | . . . High Security . | . . . Max Security . | . . . Peak Influence 128 | 5 70 128 Initial 5 | . . 5 Average 35 | . 32 51 Influence Increases 485 | 15 200 270 Destroy 0b10 Robot/C 360 | . 140 220 Destroy 0b10 Robot/NC 15 | 15 . . Destroy Leader 70 | . 30 40 Allied During Kill 10 | . . 10 Lose Combat Pursuer 30 | . 30 . Influence Decreases 467 | 15 186 266 Entered New Map 9 | . . 9 Time Decay 358 | 15 156 187 Lost Part 80 | . 30 50 Lost Ally 20 | . . 20 Squads Dispatched . | . . . Investigation . | . . . Extermination . | . . . Reinforcement . | . . . Assault . | . . . Garrison . | . . . Intercept . | . . . Searches Triggered . | . . . Construction Impeded . | . . . Haulers Reinforced . | . . . Active Scanning Responses . | . . . Cargo Convoy Interrupts . | . . . Stealth | -11 -10 -10 --------- Run | Yrd Mat Min Distress Signals 1 | . 1 . Communications Jammed . | . . . Distress Signals . | . . . Times Spotted 24 | . 11 13 Peak Tracking Total 4 | . 4 3 Tactical Retreats 2 | . 2 . Traps | -11 -10 -10 ------- Run | Yrd Mat Min Traps Triggered . | . . . Indirectly . | . . . Trap Hack Attempts . | . . . Triggered . | . . . Disarmed . | . . . Reprogrammed . | . . . Reused . | . . . Traps Extracted . | . . . Installed . | . . . Triggered . | . . . Machines | -11 -10 -10 ---------- Run | Yrd Mat Min Machines Disabled . | . . . Max in Single Turn . | . . . Machines Repaired . | . . . Machines Dismantled . | . . . Machines Sabotaged . | . . . Overloaded Fab Kills . | . . . Hacking | -11 -10 -10 --------- Run | Yrd Mat Min Machines Accessed 1 | . 1 . Terminals 1 | . 1 . Fabricators . | . . . Repair Stations . | . . . Recycling Units . | . . . Scanalyzers . | . . . Garrison Access . | . . . Total Hacks 3 | . 3 . Successful . | . . . Failed 3 | . 3 . Catastrophic . | . . . Database Lockouts . | . . . Manual 3 | . 3 . Terminals 3 | . 3 . Fabricators . | . . . Repair Stations . | . . . Recycling Units . | . . . Scanalyzers . | . . . Garrison Access . | . . . Terminal Hacks . | . . . Fabricator Hacks . | . . . Repair Station Hacks . | . . . Recycling Unit Hacks . | . . . Scanalyzer . | . . . Garrison Access Hacks . | . . . Unauthorized Hacks . | . . . Terminals . | . . . Fabricators . | . . . Repair Stations . | . . . Recycling Units . | . . . Scanalyzers . | . . . Garrison Access . | . . . Data Cores Recovered . | . . . Used . | . . . Hacking Detections 1 | . 1 . Full Trace Events . | . . . Feedback Events . | . . . Feedback Blocked . | . . . Robot Schematics Acquired . | . . . Robots Built . | . . . Authchips . | . . . Time . | . . . Total Robot Build Rating . | . . . Part Schematics Acquired . | . . . Parts Built . | . . . Authchips . | . . . Time . | . . . Total Part Build Rating . | . . . Part Studies Acquired . | . . . Parts Repaired . | . . . Time . | . . . Parts Recycled . | . . . Recycled Matter . | . . . Retrieved Matter . | . . . Retrieved Components . | . . . Parts Scanalyzed . | . . . Part Schematics Acquired . | . . . Parts Damaged . | . . . Bothacking | -11 -10 -10 ------------ Run | Yrd Mat Min Used RIF Installer . | . . . Robots Hacked . | . . . Non-combat . | . . . Combat . | . . . Robot Hacks Applied . | . . . Relay Couplers Released . | . . . Fabnet Peak Effective % . | . . . Robots Rewired . | . . . Allies Hacked . | . . . Hacks Repelled . | . . . Allies | -11 -10 -10 -------- Run | Yrd Mat Min Total Allies 1 | . . 1 Largest Group 1 | . . 1 Highest-Rated Group 31 | . . 31 Highest-Rated Ally 31 | . . 31 Total Orders . | . . . Ally Attacks 24 | . . 24 Total Damage 148 | . . 148 Kills 3 | . . 3 Allies Corrupted . | . . . Allies Melted . | . . . Intel | -11 -10 -10 ------- Run | Yrd Mat Min Active Infowar (turns) 690 | 1 430 259 Seismic 690 | 1 430 259 Robot Analysis Total . | . . . Derelict Logs Recovered . | . . . Drone Launches . | . . . Drone Recoveries . | . . . Exploration | -11 -10 -10 ------------- Run | Yrd Mat Min Turns Passed 1081 | 174 430 477 Spaces Moved 556 | 91 157 308 Core 13 | 13 . . Treads 198 | 78 120 . Legs . | . . . Wheels 345 | . 37 308 Hover . | . . . Flight . | . . . Fastest Speed 50 | 50 100 100 Average Speed 127 | 144 156 107 Slowest Speed 240 | 160 240 115 Overloaded Moves . | . . . Propulsion Burnouts . | . . . Robots Hopped . | . . . Potential Cave-ins . | . . . Cave-ins Triggered . | . . . Exploration Rate (%) 30 | 6 30 55 Regions Visited 2 Branch Regions 1 Pre-discovered Areas . | . . . Known Exits Taken . | . . . Unknown Exits Taken 2 | 1 1 . Scrap Searched 1 | . . 1 Spaces Dug . | . . . Terrain Destroyed . | . . . Melee . | . . . Projectile . | . . . AOE . | . . . Terrain Rammed . | . . . Walls Destroyed . | . . . Machines Disabled . | . . . Actions | -11 -10 -10 --------- Run | Yrd Mat Min Total 788 | 118 265 405 Wait 89 | . 39 50 Move 554 | 90 156 308 Hop . | . . . Pick Up 31 | 12 15 4 Fast Attach . | . . . Attach 13 | 7 3 3 Detach . | . . . Swap 5 | . 3 2 Drop 7 | . 3 4 Fire 86 | 9 46 31 Melee 3 | . . 3 Ram . | . . . Kick . | . . . Crush . | . . . Escape Stasis . | . . . Rewire . | . . . Trap . | . . . Miscellaneous . | . . . Route ------- -11/Scrapyard -10/Materials -10/Mines (discovered 1 exit: [*Mat]) History --------- Turn | Location | Event 6 | -11/Scrapyard | Discovered new exit (range 15) 175 | -11/Scrapyard | Entered Materials 305 | -10/Materials | Build established: Mutant 588 | -10/Materials | Discovered new exit (range 15) 605 | -10/Materials | Entered Mines 608 | -10/Mines | Received a Mining Laser from a helpful Derelict 647 | -10/Mines | Received a Rocket Launcher from a helpful Derelict 778 | -10/Mines | Discovered new exit (range 6) 1036 | -10/Mines | Core integrity fell below 50% 1076 | -10/Mines | Core integrity fell below 20% 1082 | -10/Mines | Destroyed by G-47 Trooper with Particle Gun Last Messages --------------- 00967_ Found Sml. Laser. 00967_ Found Aluminum Leg. 00967_ Found Huge Storage Unit. 00967_ Found 68 Matter. 00969_ Acquired Huge Storage Unit. 01023_ K-01 Serf collects debris. 01026_ K-01 Serf cleans the Matter Pump. 01028_ S-10 Pest destroyed. 01028_ Switching to secondary target: S-10 Pest. 01030_ K-01 Serf collects debris. 01036_ S-10 Pest destroyed. 01048_ Acquired 14 matter. 01056_ Com. Wheel destroyed. 01062_ Lgt. Treads destroyed. 01067_ Lgt. Assault Rifle destroyed. 01072_ Critical hit (Burn: +37). 01080_ G-47 Trooper suffers critical hit (Smash). 01080_ Destroyed Aluminum Leg. 01080_ G-47 Trooper system corrupted by crushing effect. 01080_ Lgt. Assault Rifle destroyed. Map ----- +----------------------------------------------------+ | ?????????????????????????????????? | | ?????????????????????????????????? | | ?????????????????????????????????? | | ?????????????????????????????????? | | ?????????????????????????????????? | | ?????????????????????????????????? | | ?????????????????????????????????? | | ?????????????????????????????????? | | ?????????????????????????????????? | | ?????????????????????????????????? | | ?????????????????????????????????? | | ?????????????????????????????????? | | ?????????????????????????????????? | | ????????????????????##???????????? | | ???????????????????? #??????????? | | ????????????????????# ??????????? | | ????????????????????# #??????????? | | ????????????????????# #??????????? | | ????##??????????????# #??????????? | | ???## #???####??????# #??????????? | | ???# #### ###????# #??????????? | | ???# ## ###### ###????????? | | ??## #????????? | | ??# #????????? | | ??# %=* #### ## #?????###? | | ??# =g @ ###??# ## #?#### ## | | ??# """g ##???? ## ### # | | ??### """%##?????#### | | ????## """[#?????????# | | ?????# ????????##### | | ?????# ####?????????## | | ?????# ##???????????## ## | | ?????## #???????????## #### # | | ??????# t#??????????## ##??# ## | | ??????# ???????????# #??## #? | | ??????# ????????????# #??# ## | | ??????# ????????????# #??# | | ??????#?????????????# #### | | ????????????????????# ## ### | | ????????????????????## #?? | | ?????????????????????#### #?? | | ????????????????????????## ##?? | | ?????????????????????????## ##??? | | ??????????????????????????####???? | | ?????????????????????????????????? | | ?????????????????????????????????? | | ?????????????????????????????????? | | ?????????????????????????????????? | | ?????????????????????????????????? | | ?????????????????????????????????? | +----------------------------------------------------+ Best States ------------- Heat Dissipation 25 Energy Generation 10 Energy Capacity 250 Matter Stores 300 Matter Capacity 300 Sight Range 16 Terrain Scan Density 10 Core Shielding 20 Evasion (%) 50 Recoil Reduction 2 Item Schematics ----------------- None Robot Schematics ------------------ None Fabricated ------------ Nothing Repaired ---------- Nothing Studied --------- None Alien Tech Used ----------------- None Achievements -------------- None Challenges ------------ None Game ------ Seed DroneDeepScreen Manual? 0 Play Time 00:06:17 Cumulative 444.9 hours Start 2025.10.29 @ 22:12:23 End 2025.10.29 @ 22:19:21 Sessions 1 Manual Loads 0 Difficulty Rogue Special Mode None Game No. 564 Rogue 564 Adventurer 0 Explorer 0 Win Type - Total 14 Types 6/0/2/2/1/0/2/1/0/0 Lore% 90 Gallery% 84 Achievement% 60 Wizard Run 0 Options --------- Layout 0 ASCII 0 Keyboard 0 Movement Mouse Keybinds 0 Fullscreen 1 Font 24/Terminus Map View 76x50 Zoom Use 0% Tactical HUD 1 Map Filters NONE Filters NONE Steam 1 RUN: 44f5b8d7-1ca4-44b2-8bc5-b3aac53ddaaf